[Event "Porticcio op 3rd"]
[Site "Grosseto Prugna"]
[Date "2016.06.26"]
[Round "3"]
[White "Schroeder, Jan Christian"]
[Black "Zhigalko, Sergei"]
[Result "1/2-1/2"]
[ECO "B81"]
[WhiteElo "2507"]
[BlackElo "2653"]
[Annotator "ChessBase II"]
[PlyCount "106"]
[EventDate "2016.06.25"]
[EventType "swiss"]
[EventRounds "9"]
[EventCountry "FRA"]
[SourceTitle "EXT 2017"]
[Source "ChessBase"]
[SourceDate "2016.10.25"]
[SourceVersion "1"]
[SourceVersionDate "2016.10.25"]
[SourceQuality "1"]
[TimeControl "5400+30"]

1. e4 {[%emt 0:01:02]} c5 {[%emt 0:00:00]} 2. Nf3 {[%emt 0:00:05]} d6 {[%emt 0:00:04]} 3. d4 {[%emt 0:00:08]} cxd4 {[%emt 0:00:04]} 4. Nxd4 {[%emt 0:00:03]} Nf6 {[%emt 0:00:05]} 5. Nc3 {[%emt 0:00:05]} a6 {[%emt 0:00:03]} 6. Be3 {[%emt 0:00:46]} e6 {[%emt 0:00:35]} 7. g4 {[%emt 0:00:33]} h6 {[%emt 0:01:41]} 8. h4 {[%emt 0:01:25]} Nc6 {[%emt 0:19:29]} 9. Rg1 {[%emt 0:04:35]} h5 {[%emt 0:12:32]} 10. gxh5 {[%emt 0:00:05]} Rxh5 {[%emt 0:01:03]} 11. Bg5 {[%emt 0:03:45]} Rh8 {[%emt 0:01:34]} 12. Be2 {[%emt 0:08:29]} Qb6 $146 {[%emt 0:03:30]} (12... Bd7 13. Qd2 Qb6 14. Nb3 Qc7 15. O-O-O b5 16. a3 Rb8 17. f4 b4 18. axb4 Nxb4 19. h5 Nxh5 20. Rh1 g6 21. f5 Bg7 22. Bxh5 gxh5 23. f6 Bf8 24. Rh4 a5 25. Rdh1 a4 26. Nd4 Qb6 27. Rxh5 Na2+ 28. Kd1 Nxc3+ 29. Qxc3 Rxh5 30. Rxh5 Rc8 31. Qd3 Rc5 32. Nf3 Qxb2 33. Rh8 Qb1+ 34. Bc1 Rc6 35. Ng5 a3 36. Nh7 Kd8 37. Rxf8+ Be8 38. Ng5 a2 39. Nxf7+ Kc7 40. Rxe8 a1=Q 41. Re7+ Kb8 42. Re8+ {Bacrot,E (2697)-Ivanchuk,V (2726) Berlin 2015 ½-½}) 13. Nb3 {[%emt 0:01:23]} Qc7 {[%emt 0:02:16]} 14. Qd2 {[%emt 0:22:08]} b5 {[%emt 0:01:57]} 15. a3 {[%emt 0:00:05]} Ne5 {[%emt 0:04:06][%csl Gc4]} (15... Bb7) 16. O-O-O {[%emt 0:02:50]} Nc4 {[%emt 0:08:17]} 17. Qd4 {[%emt 0:01:41]} (17. Bxc4 $143 bxc4 {[%cal Ga8b8]} 18. Nd4 Bd7 (18... Rb8 19. e5 dxe5 20. Nc6)) 17... e5 {[%emt 0:07:44]} 18. Qd3 {[%emt 0:01:15]} Be6 {[%emt 0:00:07]} 19. Nd5 {[%emt 0:13:40]} Bxd5 {[%emt 0:01:32]} 20. exd5 {[%emt 0:00:09]} Nh7 {[%emt 0:06:01]} 21. Kb1 {[%emt 0:00:49]} Nxg5 {[%emt 0:01:42]} 22. hxg5 {[%emt 0:00:04]} g6 {[%emt 0:00:11]} 23. Qe4 {[%emt 0:04:39]} Be7 {[%emt 0:01:38]} 24. c3 {[%emt 0:05:26]} Rc8 {[%emt 0:01:52]} 25. Bxc4 {[%emt 0:02:15]} Qxc4 {[%emt 0:00:55]} 26. Nd2 {[%emt 0:04:45]} Qxe4+ {[%emt 0:00:32]} 27. Nxe4 {[%emt 0:00:01]} Rh4 {[%emt 0:00:06]} 28. Rde1 {[%emt 0:02:17]} Kd7 {[%emt 0:00:42]} 29. Kc2 {[%emt 0:01:37]} Rch8 {[%emt 0:00:52]} 30. Kd3 {[%emt 0:00:08]} Bd8 {[%emt 0:04:23]} 31. Rg3 {[%emt 0:04:00]} Rf4 {[%emt 0:00:15]} 32. f3 {[%emt 0:04:33]} Rh2 {[%emt 0:02:15]} 33. Nd2 {[%emt 0:03:04]} Rf5 {[%emt 0:02:54]} 34. Reg1 {[%emt 0:01:22]} Bb6 {[%emt 0:00:03]} 35. R1g2 {[%emt 0:00:11]} Rxg2 {[%emt 0:00:24]} 36. Rxg2 {[%emt 0:00:07]} Bd8 $17 {[%emt 0:00:02][%csl Gd8,Rg5]} 37. Ne4 $1 {[%emt 0:01:57][%csl Ge4]} Rxf3+ {[%emt 0:00:13]} 38. Ke2 {[%emt 0:00:11]} Rf4 {[%emt 0:00:23]} 39. Kd3 {[%emt 0:00:07]} (39. Ke3) 39... Rf3+ {[%emt 0:05:47]} 40. Ke2 {[%emt 0:00:33]} Rf5 {[%emt 0:00:13]} 41. Rg3 {[%emt 0:01:50]} Rf4 {[%emt 0:00:57]} 42. Kd3 {[%emt 0:00:04]} Rf1 {[%emt 0:00:14]} 43. Rh3 {[%emt 0:01:36]} Rf5 {[%emt 0:08:05]} 44. Rg3 {[%emt 0:02:11]} a5 {[%emt 0:01:37]} 45. b3 {[%emt 0:01:15]} Rf1 {[%emt 0:02:17]} 46. Rh3 {[%emt 0:01:05]} Rd1+ {[%emt 0:00:11]} 47. Ke2 {[%emt 0:00:45]} Rxd5 {[%emt 0:00:32]} 48. b4 {[%emt 0:00:44]} axb4 {[%emt 0:00:37]} 49. axb4 {[%emt 0:00:03]} Ke6 {[%emt 0:00:52]} 50. Rf3 {[%emt 0:01:24]} Be7 {[%emt 0:00:42]} 51. Rf1 {[%emt 0:00:41]} Bd8 {[%emt 0:00:06]} 52. Rf3 {[%emt 0:00:39]} Be7 {[%emt 0:00:26]} 53. Rf1 {[%emt 0:00:05]} Bd8 {[%emt 0:00:29]} 1/2-1/2

[Event "Porticcio op 3rd"]
[Site "Grosseto Prugna"]
[Date "2016.06.27"]
[Round "4"]
[White "Zhigalko, Sergei"]
[Black "Zude, Erik"]
[Result "1-0"]
[ECO "B90"]
[WhiteElo "2653"]
[BlackElo "2403"]
[Annotator "ChessBase II"]
[PlyCount "53"]
[EventDate "2016.06.25"]
[EventType "swiss"]
[EventRounds "9"]
[EventCountry "FRA"]
[SourceTitle "EXT 2017"]
[Source "ChessBase"]
[SourceDate "2016.10.25"]
[SourceVersion "1"]
[SourceVersionDate "2016.10.25"]
[SourceQuality "1"]
[TimeControl "5400+30"]

1. e4 {[%emt 0:00:00]} c5 {[%emt 0:00:00]} 2. Nf3 {[%emt 0:00:00]} d6 {[%emt 0:00:00]} 3. d4 {[%emt 0:00:02]} cxd4 {[%emt 0:00:05]} 4. Nxd4 {[%emt 0:00:03]} Nf6 {[%emt 0:00:17]} 5. Nc3 {[%emt 0:00:03]} a6 {[%emt 0:00:13]} 6. Be3 {[%emt 0:00:04]} e5 {[%emt 0:00:21]} 7. Nb3 {[%emt 0:00:06]} Be6 {[%emt 0:00:26]} 8. Qd2 {[%emt 0:01:44]} Nbd7 {[%emt 0:00:48]} 9. f3 {[%emt 0:02:51]} b5 {[%emt 0:01:37]} 10. O-O-O {[%emt 0:04:10]} Be7 {[%emt 0:02:23]} 11. g4 {[%emt 0:04:44]} b4 {[%emt 0:04:52]} (11... Nb6 12. g5 Nh5 13. Na5 Qc7 14. Kb1 O-O 15. Rg1 b4 16. Nd5 Nxd5 17. exd5 Qxa5 18. dxe6 fxe6 19. Bh3 Nf4 20. Bxf4 Rxf4 21. Bxe6+ Kh8 22. Qe2 Raf8 23. Bd5 g6 24. Qe1 Qc5 25. Be4 a5 26. h4 Kg7 27. Rd5 Qb6 28. Rh1 a4 29. h5 Bxg5 30. hxg6 h6 31. Qd1 R4f6 32. Qd3 Be3 33. Rb5 Qa7 34. Rb7+ Qxb7 35. Bxb7 Bc5 36. Be4 Re8 37. Qd2 Rf4 38. Qd5 Re7 39. Qa8 a3 40. Qd8 Ra7 41. Bd5 {Ponomariov,R (2706)-Nepomniachtchi,I (2719) Almaty 2016 1-0}) 12. Ne2 {[%emt 0:05:53]} h6 {[%emt 0:03:52]} 13. Ng3 {[%emt 0:01:35]} d5 {[%emt 0:05:07]} 14. Kb1 $146 {[%emt 0:00:06]} (14. Nh5 Rg8 15. Nxf6+ Nxf6 16. Bc5 Qc7 17. Bxe7 Qxe7 18. exd5 Bxd5 19. Bg2 O-O-O 20. Qe2 Kb7 21. Rhe1 Bxb3 22. axb3 Qc5 23. f4+ e4 24. Bxe4+ Kb6 25. Bg2 Rge8 26. Qf3 Rxe1 27. Rxe1 Rd7 28. Kb1 Qd5 29. Qxd5 Nxd5 30. Bxd5 Rxd5 31. Re7 Rd1+ 32. Ka2 Rd2 33. Rxf7 Rxc2 34. Rxg7 Rxh2 35. Rg6+ Kb5 36. f5 Rg2 37. f6 Rg1 38. Rxh6 Rxg4 39. Rh5+ Kc6 40. Rf5 Rg8 41. Kb1 Rc8 42. f7 Rf8 43. Kc2 Kd7 {Palmkoeck,W (2334)-Smuts,I (2171) ICCF email 2006 1-0}) 14... d4 {[%emt 0:07:53]} 15. Bf2 {[%emt 0:00:16]} g5 $6 {[%emt 0:12:53]} (15... a5 $142 {[%cal Ga5a4]} 16. Nf5 O-O (16... a4 17. Nxg7+ Kf8 18. Nxe6+) 17. h4 a4 18. Nc1 Bxf5 19. gxf5 Qc7 20. Rg1 Rfc8 $15) 16. h4 {[%emt 0:04:02]} Rg8 {[%emt 0:00:46]} 17. hxg5 {[%emt 0:05:55]} hxg5 {[%emt 0:00:11]} 18. Nf5 {[%emt 0:00:13]} Bf8 {[%emt 0:02:53]} 19. Bg3 {[%emt 0:02:55]} a5 {[%emt 0:04:52]} 20. Bb5 {[%emt 0:03:15]} a4 {[%emt 0:12:14]} 21. Nbxd4 {[%emt 0:03:30]} exd4 {[%emt 0:00:19]} 22. Nxd4 {[%emt 0:00:16]} Ra5 {[%emt 0:02:19]} 23. c4 {[%emt 0:01:45]} bxc3 {[%emt 0:09:15]} 24. Qxc3 {[%emt 0:00:08]} Rxb5 {[%emt 0:01:48]} 25. Nxb5 {[%emt 0:00:06]} Bc5 {[%emt 0:00:49]} 26. Nc7+ {[%emt 0:04:32]} Ke7 {[%emt 0:02:04]} 27. Be5 {[%emt 0:00:55]} 1-0

[Event "Porticcio op 3rd"]
[Site "Grosseto Prugna"]
[Date "2016.06.28"]
[Round "5"]
[White "Cornette, Matthieu"]
[Black "Zhigalko, Sergei"]
[Result "1/2-1/2"]
[ECO "B30"]
[WhiteElo "2583"]
[BlackElo "2653"]
[PlyCount "50"]
[EventDate "2016.06.25"]
[EventType "swiss"]
[EventRounds "9"]
[EventCountry "FRA"]
[SourceTitle "EXT 2017"]
[Source "ChessBase"]
[SourceDate "2016.10.25"]
[SourceVersion "1"]
[SourceVersionDate "2016.10.25"]
[SourceQuality "1"]
[TimeControl "5400+30"]

1. e4 {[%emt 0:00:00]} c5 {[%emt 0:00:00]} 2. Nf3 {[%emt 0:00:00]} Nc6 {[%emt 0:00:00]} 3. Bb5 {[%emt 0:00:10]} Nf6 {[%emt 0:00:00]} 4. Nc3 {[%emt 0:00:13]} Qc7 {[%emt 0:00:10]} 5. O-O {[%emt 0:01:42]} Nd4 {[%emt 0:00:06]} 6. Re1 {[%emt 0:00:29]} a6 {[%emt 0:00:05]} 7. Bc4 {[%emt 0:00:21]} d6 {[%emt 0:01:33]} 8. Nd5 {[%emt 0:00:30]} Nxd5 {[%emt 0:00:23]} 9. exd5 {[%emt 0:00:07]} g6 {[%emt 0:02:05]} 10. Nxd4 {[%emt 0:00:27]} cxd4 {[%emt 0:00:03]} 11. d3 {[%emt 0:00:11]} h6 {[%emt 0:01:12]} 12. a4 {[%emt 0:00:09]} Bg7 {[%emt 0:01:01]} 13. Bd2 {[%emt 0:00:04]} Bf6 {[%emt 0:17:15]} 14. a5 {[%emt 0:03:35]} Kf8 {[%emt 0:02:23]} 15. Ra3 {[%emt 0:00:48]} Kg7 {[%emt 0:08:44]} 16. Rb3 {[%emt 0:00:56]} h5 {[%emt 0:05:17]} 17. Rb6 {[%emt 0:05:41]} h4 {[%emt 0:01:07]} 18. h3 {[%emt 0:02:37]} Bf5 {[%emt 0:15:43]} 19. b4 {[%emt 0:12:45]} Qd7 {[%emt 0:02:46]} 20. Qf3 {[%emt 0:14:12]} Rac8 {[%emt 0:12:26]} 21. b5 {[%emt 0:06:00]} axb5 {[%emt 0:00:04]} 22. Bxb5 {[%emt 0:00:15]} Qc7 {[%emt 0:00:04]} 23. Bc4 {[%emt 0:00:59]} Qd7 {[%emt 0:01:53]} 24. Bb5 {[%emt 0:05:02]} Qc7 {[%emt 0:00:04]} 25. Bc4 {[%emt 0:00:15]} Qd7 {[%emt 0:00:02]} 1/2-1/2

[Event "Porticcio op 3rd"]
[Site "Grosseto Prugna"]
[Date "2016.06.28"]
[Round "6"]
[White "Zhigalko, Sergei"]
[Black "Sagar, Shah"]
[Result "1-0"]
[ECO "B12"]
[WhiteElo "2653"]
[BlackElo "2433"]
[PlyCount "71"]
[EventDate "2016.06.25"]
[EventType "swiss"]
[EventRounds "9"]
[EventCountry "FRA"]
[SourceTitle "EXT 2017"]
[Source "ChessBase"]
[SourceDate "2016.10.25"]
[SourceVersion "1"]
[SourceVersionDate "2016.10.25"]
[SourceQuality "1"]
[TimeControl "5400+30"]

1. e4 {[%emt 0:00:00]} c6 {[%emt 0:00:00]} 2. d4 {[%emt 0:00:00]} d5 {[%emt 0:00:00]} 3. e5 {[%emt 0:00:00]} Bf5 {[%emt 0:00:03]} 4. Nf3 {[%emt 0:00:00]} e6 {[%emt 0:00:11]} 5. Be2 {[%emt 0:00:00]} Ne7 {[%emt 0:00:18]} 6. O-O {[%emt 0:02:50]} c5 {[%emt 0:00:09]} 7. Na3 {[%emt 0:04:44]} Nec6 {[%emt 0:06:28]} 8. Bg5 {[%emt 0:01:26]} Be7 {[%emt 0:04:55]} 9. Bxe7 {[%emt 0:07:44]} Qxe7 {[%emt 0:00:16]} 10. c4 {[%emt 0:08:25]} dxc4 {[%emt 0:02:52]} 11. Nxc4 {[%emt 0:01:05]} O-O {[%emt 0:00:30]} 12. dxc5 {[%emt 0:05:25]} Nd7 {[%emt 0:09:02]} 13. Nd6 {[%emt 0:05:48]} Nxc5 {[%emt 0:03:53]} 14. Bb5 {[%emt 0:02:45]} Bg4 {[%emt 0:17:04]} 15. Bxc6 {[%emt 0:01:13]} bxc6 {[%emt 0:00:02]} 16. h3 {[%emt 0:00:21]} Bh5 {[%emt 0:12:10]} 17. Rc1 {[%emt 0:02:02]} Nd7 {[%emt 0:00:45]} 18. g4 {[%emt 0:01:16]} Bg6 {[%emt 0:00:05]} 19. Rxc6 {[%emt 0:00:16]} f6 {[%emt 0:08:14]} 20. Nc4 {[%emt 0:08:52]} Nxe5 {[%emt 0:04:47]} 21. Ncxe5 {[%emt 0:01:11]} fxe5 {[%emt 0:00:15]} 22. Nxe5 {[%emt 0:00:19]} Be4 {[%emt 0:01:57]} 23. Qd6 {[%emt 0:00:14]} Qxd6 {[%emt 0:02:11]} 24. Rxd6 {[%emt 0:00:03]} Bd5 {[%emt 0:00:08]} 25. Rc1 {[%emt 0:03:41]} Bxa2 {[%emt 0:07:56]} 26. Rd7 {[%emt 0:02:20]} Rfd8 {[%emt 0:03:52]} 27. Re7 {[%emt 0:00:08]} Re8 {[%emt 0:01:43]} 28. Rxe8+ {[%emt 0:00:19]} Rxe8 {[%emt 0:00:02]} 29. Ra1 {[%emt 0:00:05]} Bd5 {[%emt 0:00:38]} 30. Rxa7 {[%emt 0:00:02]} Rb8 {[%emt 0:01:12]} 31. Rc7 {[%emt 0:00:39]} h5 {[%emt 0:04:03]} 32. g5 {[%emt 0:04:40]} g6 {[%emt 0:07:25]} 33. Nxg6 {[%emt 0:00:47]} Be4 {[%emt 0:00:17]} 34. Nf4 {[%emt 0:01:23]} h4 {[%emt 0:00:51]} 35. Nh5 {[%emt 0:00:55]} Bf5 {[%emt 0:00:43]} 36. g6 {[%emt 0:00:14]} 1-0

[Event "Porticcio op 3rd"]
[Site "Grosseto Prugna"]
[Date "2016.06.29"]
[Round "7"]
[White "Sengupta, Deep"]
[Black "Zhigalko, Sergei"]
[Result "1-0"]
[ECO "B33"]
[WhiteElo "2543"]
[BlackElo "2653"]
[PlyCount "165"]
[EventDate "2016.06.25"]
[EventType "swiss"]
[EventRounds "9"]
[EventCountry "FRA"]
[SourceTitle "EXT 2017"]
[Source "ChessBase"]
[SourceDate "2016.10.25"]
[SourceVersion "1"]
[SourceVersionDate "2016.10.25"]
[SourceQuality "1"]
[TimeControl "5400+30"]

1. e4 {[%emt 0:00:00]} c5 {[%emt 0:00:00]} 2. Nf3 {[%emt 0:00:00]} Nc6 {[%emt 0:00:00]} 3. d4 {[%emt 0:00:00]} cxd4 {[%emt 0:00:00]} 4. Nxd4 {[%emt 0:00:00]} Nf6 {[%emt 0:00:00]} 5. Nc3 {[%emt 0:00:00]} e5 {[%emt 0:00:00]} 6. Ndb5 {[%emt 0:00:00]} d6 {[%emt 0:00:10]} 7. Bg5 {[%emt 0:00:02]} a6 {[%emt 0:00:09]} 8. Na3 {[%emt 0:00:05]} b5 {[%emt 0:00:05]} 9. Nd5 {[%emt 0:00:18]} Be7 {[%emt 0:00:13]} 10. Bxf6 {[%emt 0:00:06]} Bxf6 {[%emt 0:00:07]} 11. c4 {[%emt 0:00:11]} b4 {[%emt 0:00:34]} 12. Nc2 {[%emt 0:00:06]} O-O {[%emt 0:00:35]} 13. g3 {[%emt 0:00:05]} a5 {[%emt 0:00:17]} 14. h4 {[%emt 0:00:20]} Be6 {[%emt 0:05:43]} 15. Bg2 {[%emt 0:01:02]} Be7 {[%emt 0:07:32]} 16. O-O {[%emt 0:01:37]} Qb8 {[%emt 0:00:45]} 17. b3 {[%emt 0:03:24]} Bd8 {[%emt 0:00:31]} 18. Qe2 {[%emt 0:05:32]} Bb6 {[%emt 0:03:04]} 19. Nxb6 {[%emt 0:00:10]} Qxb6 {[%emt 0:00:04]} 20. Rfd1 {[%emt 0:02:16]} Qc5 {[%emt 0:05:08]} 21. Rd3 {[%emt 0:02:19]} a4 {[%emt 0:05:16]} 22. Rad1 {[%emt 0:07:10]} axb3 {[%emt 0:02:28]} 23. axb3 {[%emt 0:00:06]} Ra2 {[%emt 0:03:02]} 24. R1d2 {[%emt 0:00:23]} h6 {[%emt 0:14:15]} 25. Kh2 {[%emt 0:03:19]} Rfa8 {[%emt 0:14:44]} 26. Bh3 {[%emt 0:22:07]} Rxc2 {[%emt 0:12:10]} 27. Rxc2 {[%emt 0:00:33]} Bxh3 {[%emt 0:00:42]} 28. Kxh3 {[%emt 0:04:20]} Nd4 {[%emt 0:00:03]} 29. Qd1 {[%emt 0:04:51]} Nxc2 {[%emt 0:00:35]} 30. Qxc2 {[%emt 0:00:01]} Ra3 {[%emt 0:10:53]} 31. Kg2 {[%emt 0:09:54]} Qa7 {[%emt 0:09:18]} 32. Qd1 {[%emt 0:11:10]} Ra2 {[%emt 0:00:16]} 33. Qf3 {[%emt 0:00:05]} Qc7 {[%emt 0:00:34]} 34. Rd5 {[%emt 0:08:09]} Ra5 {[%emt 0:00:01]} 35. Rd2 {[%emt 0:00:08]} Ra3 {[%emt 0:00:23]} 36. Qd1 {[%emt 0:00:47]} Kh7 {[%emt 0:04:25]} 37. Rd5 {[%emt 0:01:28]} Ra6 {[%emt 0:02:53]} 38. h5 {[%emt 0:01:23]} Rb6 {[%emt 0:01:32]} 39. Qg4 {[%emt 0:01:55]} Kg8 {[%emt 0:00:28]} 40. Qf5 {[%emt 0:01:49]} Rc6 {[%emt 0:00:06]} 41. Rb5 {[%emt 0:00:05]} Rb6 {[%emt 0:00:06]} 42. Ra5 {[%emt 0:00:06]} Rb8 {[%emt 0:00:22]} 43. Rd5 {[%emt 0:00:04]} Rd8 {[%emt 0:00:58]} 44. Qg4 {[%emt 0:00:49]} Rb8 {[%emt 0:00:28]} 45. Qf5 {[%emt 0:04:42]} Rd8 {[%emt 0:00:10]} 46. Kg1 {[%emt 0:00:02]} Rf8 {[%emt 0:00:29]} 47. Kh1 {[%emt 0:02:08]} Rd8 {[%emt 0:00:06]} 48. Kh2 {[%emt 0:00:03]} Rf8 {[%emt 0:00:07]} 49. Qf3 {[%emt 0:02:14]} Rb8 {[%emt 0:00:32]} 50. Qg4 {[%emt 0:00:00]} Ra8 {[%emt 0:00:41]} 51. Qd1 {[%emt 0:00:33]} Ra2 {[%emt 0:00:22]} 52. Kg2 {[%emt 0:00:10]} Qa7 {[%emt 0:01:23]} 53. c5 {[%emt 0:01:23]} Ra1 {[%emt 0:01:08]} 54. Qf3 {[%emt 0:05:11]} Qa6 {[%emt 0:00:08]} 55. Rd3 {[%emt 0:00:07]} d5 {[%emt 0:00:24]} 56. Rxd5 {[%emt 0:01:29]} Qf1+ {[%emt 0:00:11]} 57. Kh2 {[%emt 0:00:01]} f6 {[%emt 0:00:14]} 58. Rd2 {[%emt 0:01:52]} Rc1 {[%emt 0:01:34]} 59. c6 {[%emt 0:00:29]} Qe1 {[%emt 0:00:33]} 60. Rd8+ {[%emt 0:00:34]} Kf7 {[%emt 0:00:02]} 61. c7 {[%emt 0:00:26]} Rxc7 {[%emt 0:00:47]} 62. Qf5 {[%emt 0:00:26]} Ke7 {[%emt 0:00:08]} 63. Rd5 {[%emt 0:00:37]} Qf1 {[%emt 0:00:48]} 64. Rd2 {[%emt 0:00:18]} Qc1 {[%emt 0:00:06]} 65. Rd3 {[%emt 0:00:30]} Qg5 {[%emt 0:00:59]} 66. Qf3 {[%emt 0:00:21]} Rd7 {[%emt 0:00:42]} 67. Rxd7+ {[%emt 0:00:35]} Kxd7 {[%emt 0:00:01]} 68. Qd1+ {[%emt 0:00:04]} Ke8 {[%emt 0:00:44]} 69. Kg2 {[%emt 0:00:36]} f5 {[%emt 0:00:14]} 70. exf5 {[%emt 0:01:03]} Qxf5 {[%emt 0:00:04]} 71. Qe2 {[%emt 0:00:41]} Ke7 {[%emt 0:01:02]} 72. Qc4 {[%emt 0:00:18]} Qxh5 {[%emt 0:00:29]} 73. Qxb4+ {[%emt 0:00:03]} Ke8 {[%emt 0:00:50]} 74. Qe4 {[%emt 0:00:43]} Kd7 {[%emt 0:00:36]} 75. b4 {[%emt 0:00:23]} Qg5 {[%emt 0:00:11]} 76. b5 {[%emt 0:00:35]} Kc7 {[%emt 0:00:49]} 77. Qc6+ {[%emt 0:00:17]} Kb8 {[%emt 0:00:01]} 78. Qd6+ {[%emt 0:00:24]} Kc8 {[%emt 0:00:23]} 79. b6 {[%emt 0:01:16]} Qc1 {[%emt 0:00:01]} 80. Qd5 {[%emt 0:00:32]} g5 {[%emt 0:00:54]} 81. Qa8+ {[%emt 0:00:15]} Kd7 {[%emt 0:00:06]} 82. b7 {[%emt 0:00:42]} Qc6+ {[%emt 0:00:41]} 83. Kh2 {[%emt 0:00:06]} 1-0

[Event "Porticcio op 3rd"]
[Site "Grosseto Prugna"]
[Date "2016.06.30"]
[Round "8"]
[White "Zhigalko, Sergei"]
[Black "Schnider, Gert"]
[Result "1-0"]
[ECO "C88"]
[WhiteElo "2653"]
[BlackElo "2374"]
[PlyCount "73"]
[EventDate "2016.06.25"]
[EventType "swiss"]
[EventRounds "9"]
[EventCountry "FRA"]
[SourceTitle "EXT 2017"]
[Source "ChessBase"]
[SourceDate "2016.10.25"]
[SourceVersion "1"]
[SourceVersionDate "2016.10.25"]
[SourceQuality "1"]
[TimeControl "5400+30"]

1. e4 {[%emt 0:00:00]} e5 {[%emt 0:00:00]} 2. Nf3 {[%emt 0:00:00]} Nc6 {[%emt 0:00:00]} 3. Bb5 {[%emt 0:00:00]} a6 {[%emt 0:00:00]} 4. Ba4 {[%emt 0:00:00]} Nf6 {[%emt 0:00:00]} 5. O-O {[%emt 0:00:00]} Be7 {[%emt 0:00:02]} 6. Re1 {[%emt 0:00:00]} b5 {[%emt 0:00:04]} 7. Bb3 {[%emt 0:00:00]} O-O {[%emt 0:00:16]} 8. h3 {[%emt 0:00:18]} Bb7 {[%emt 0:00:19]} 9. d3 {[%emt 0:00:12]} d5 {[%emt 0:01:26]} 10. exd5 {[%emt 0:05:32]} Nxd5 {[%emt 0:00:08]} 11. Nxe5 {[%emt 0:04:04]} Nxe5 {[%emt 0:00:16]} 12. Rxe5 {[%emt 0:00:06]} Qd6 {[%emt 0:00:02]} 13. Re1 {[%emt 0:15:41]} Rae8 {[%emt 0:01:19]} 14. Nd2 {[%emt 0:11:37]} c5 {[%emt 0:03:37]} 15. Ne4 {[%emt 0:16:58]} Qc6 {[%emt 0:00:20]} 16. c4 {[%emt 0:03:12]} Nb6 {[%emt 0:03:31]} 17. f3 Bh4 {[%emt 0:10:21]} 18. Re2 {[%emt 0:02:22]} Qc7 {[%emt 0:02:53]} 19. cxb5 {[%emt 0:13:08]} axb5 {[%emt 0:00:30]} 20. Bd2 {[%emt 0:03:58]} c4 {[%emt 0:05:29]} 21. dxc4 {[%emt 0:08:19]} bxc4 {[%emt 0:00:30]} 22. Bc2 {[%emt 0:00:30]} Nd5 {[%emt 0:00:30]} 23. Kh1 {[%emt 0:00:30]} f5 {[%emt 0:21:18]} 24. Nc3 {[%emt 0:00:17]} Nf4 {[%emt 0:01:03]} 25. Bxf4 {[%emt 0:06:42]} Qxf4 {[%emt 0:00:07]} 26. Rxe8 {[%emt 0:00:04]} Rxe8 {[%emt 0:00:06]} 27. Qd7 {[%emt 0:00:09]} Re7 {[%emt 0:01:57]} 28. Qxf5 {[%emt 0:00:15]} Qg3 {[%emt 0:02:03]} 29. Qxh7+ {[%emt 0:00:38]} Kf8 {[%emt 0:01:18]} 30. Be4 {[%emt 0:00:54]} Bf6 {[%emt 0:01:12]} 31. Qf5 {[%emt 0:05:33]} Re5 {[%emt 0:00:50]} 32. Qg4 {[%emt 0:01:07]} Qf2 {[%emt 0:00:54]} 33. Bxb7 {[%emt 0:01:36]} Re1+ {[%emt 0:00:22]} 34. Rxe1 {[%emt 0:00:12]} Qxe1+ {[%emt 0:00:02]} 35. Kh2 {[%emt 0:00:04]} Be5+ {[%emt 0:00:26]} 36. f4 {[%emt 0:00:11]} Bd4 {[%emt 0:00:13]} 37. Ne2 {[%emt 0:00:28]} 1-0

[Event "Porticcio op 3rd"]
[Site "Grosseto Prugna"]
[Date "2016.07.01"]
[Round "9"]
[White "Lalith, Babu MR"]
[Black "Zhigalko, Sergei"]
[Result "0-1"]
[ECO "E14"]
[WhiteElo "2579"]
[BlackElo "2653"]
[PlyCount "66"]
[EventDate "2016.06.25"]
[EventType "swiss"]
[EventRounds "9"]
[EventCountry "FRA"]
[SourceTitle "EXT 2017"]
[Source "ChessBase"]
[SourceDate "2016.10.25"]
[SourceVersion "1"]
[SourceVersionDate "2016.10.25"]
[SourceQuality "1"]
[TimeControl "5400+30"]

1. Nf3 {[%emt 0:00:00]} Nf6 {[%emt 0:00:00]} 2. c4 {[%emt 0:00:00]} e6 {[%emt 0:00:00]} 3. d4 {[%emt 0:00:00]} Bb4+ {[%emt 0:01:39]} 4. Nbd2 {[%emt 0:02:41]} O-O {[%emt 0:03:25]} 5. a3 {[%emt 0:00:09]} Bxd2+ {[%emt 0:00:33]} 6. Qxd2 {[%emt 0:00:17]} b6 {[%emt 0:03:48]} 7. e3 {[%emt 0:05:33]} Bb7 {[%emt 0:00:53]} 8. b3 {[%emt 0:00:53]} d6 {[%emt 0:02:10]} 9. Bb2 {[%emt 0:00:10]} Nbd7 {[%emt 0:00:33]} 10. Be2 {[%emt 0:00:07]} c5 {[%emt 0:22:04]} 11. O-O {[%emt 0:01:10]} Ne4 {[%emt 0:06:29]} 12. Qc2 {[%emt 0:06:50]} Ng5 {[%emt 0:06:44]} 13. Nd2 {[%emt 0:01:21]} f5 {[%emt 0:10:30]} 14. f3 {[%emt 0:32:19]} Qe7 {[%emt 0:02:24]} 15. Qc3 {[%emt 0:01:26]} cxd4 {[%emt 0:04:21]} 16. exd4 {[%emt 0:00:18]} e5 {[%emt 0:00:19]} 17. Rfe1 {[%emt 0:04:08]} Ne6 {[%emt 0:00:54]} 18. dxe5 {[%emt 0:01:55]} dxe5 {[%emt 0:00:26]} 19. Bf1 {[%emt 0:02:48]} Rae8 {[%emt 0:05:51]} 20. b4 {[%emt 0:01:24]} h5 {[%emt 0:04:58]} 21. Rad1 {[%emt 0:02:54]} h4 {[%emt 0:03:07]} 22. Qe3 {[%emt 0:07:33]} Nf4 {[%emt 0:01:39]} 23. Nb3 {[%emt 0:01:10]} h3 {[%emt 0:01:43]} 24. g3 {[%emt 0:01:51]} Ng2 {[%emt 0:00:13]} 25. Bxg2 {[%emt 0:01:08]} hxg2 {[%emt 0:00:02]} 26. Qd3 {[%emt 0:07:15]} Rd8 {[%emt 0:01:41]} 27. Qe2 {[%emt 0:06:21]} Qf7 {[%emt 0:07:28]} 28. Nd2 {[%emt 0:01:23]} e4 {[%emt 0:00:17]} 29. fxe4 {[%emt 0:00:39]} fxe4 {[%emt 0:00:22]} 30. Bd4 {[%emt 0:05:30]} Nc5 {[%emt 0:02:03]} 31. Qe3 {[%emt 0:01:34]} Nd3 {[%emt 0:00:59]} 32. Re2 {[%emt 0:00:06]} Qh5 {[%emt 0:01:23]} 33. Bc3 {[%emt 0:02:22]} Nf2 {[%emt 0:01:54]} 0-1